[Event "Titled Tuesday Blitz January 03 Late 2023"]
[White "Wang, Alexander J"]
[Black "Gurevich, Dmitry"]
[WhiteFideId "30955270"]
[BlackFideId "2000407"]
[WhiteElo "1815"]
[BlackElo "2393"]
[Result "1/2-1/2"]
[Round "03"]
[TimeControl "180+2"]
[Date "2023.01.03"]
[WhiteClock "0:00:57"]
[BlackClock "0:00:09"]

1. e4 {[%clk 0:03:00]}  c5 {[%clk 0:02:59]} 2. Nf3 {[%clk 0:03:00]}  d6 {[%clk 0:02:59]} 3. d4 {[%clk 0:03:00]}  cxd4 {[%clk 0:02:59]} 4. Nxd4 {[%clk 0:03:01]}  Nf6 {[%clk 0:02:59]} 5. Nc3 {[%clk 0:03:01]}  Nc6 {[%clk 0:02:59]} 6. g3 {[%clk 0:03:00]}  g6 {[%clk 0:02:53]} 7. Bg2 {[%clk 0:03:00]}  Nxd4 {[%clk 0:02:51]} 8. Qxd4 {[%clk 0:03:00]}  Bg7 {[%clk 0:02:52]} 9. O-O {[%clk 0:02:59]}  O-O {[%clk 0:02:51]} 10. Qd1 {[%clk 0:02:58]}  Qc7 {[%clk 0:02:47]} 11. h3 {[%clk 0:02:57]}  Rb8 {[%clk 0:02:44]} 12. a4 {[%clk 0:02:55]}  a6 {[%clk 0:02:43]} 13. Be3 {[%clk 0:02:55]}  Be6 {[%clk 0:02:37]} 14. f4 {[%clk 0:02:53]}  Rfc8 {[%clk 0:02:27]} 15. Rc1 {[%clk 0:02:49]}  b5 {[%clk 0:02:25]} 16. axb5 {[%clk 0:02:48]}  axb5 {[%clk 0:02:25]} 17. Nd5 {[%clk 0:02:47]}  Bxd5 {[%clk 0:02:15]} 18. exd5 {[%clk 0:02:46]}  b4 {[%clk 0:02:14]} 19. Bd4 {[%clk 0:02:43]}  Nd7 {[%clk 0:02:08]} 20. Bxg7 {[%clk 0:02:42]}  Kxg7 {[%clk 0:02:08]} 21. Qd4+ {[%clk 0:02:41]}  Nf6 {[%clk 0:02:07]} 22. g4 {[%clk 0:02:38]}  Qc5 {[%clk 0:02:05]} 23. Rfd1 {[%clk 0:02:32]}  Qxd4+ {[%clk 0:01:59]} 24. Rxd4 {[%clk 0:02:33]}  Rc5 {[%clk 0:01:54]} 25. g5 {[%clk 0:02:29]}  Nh5 {[%clk 0:01:51]} 26. Kf2 {[%clk 0:02:21]}  Rbc8 {[%clk 0:01:48]} 27. Rxb4 {[%clk 0:01:53]}  Rxc2+ {[%clk 0:01:46]} 28. Rxc2 {[%clk 0:01:54]}  Rxc2+ {[%clk 0:01:45]} 29. Kg1 {[%clk 0:01:54]}  h6 {[%clk 0:01:36]} 30. gxh6+ {[%clk 0:01:51]}  Kxh6 {[%clk 0:01:35]} 31. Bf3 {[%clk 0:01:43]}  Ng3 {[%clk 0:01:31]} 32. Rb7 {[%clk 0:01:38]}  Nf5 {[%clk 0:01:23]} 33. Be4 {[%clk 0:01:37]}  Re2 {[%clk 0:01:13]} 34. Bxf5 {[%clk 0:01:34]}  gxf5 {[%clk 0:01:13]} 35. b4 {[%clk 0:01:33]}  Kg7 {[%clk 0:01:12]} 36. b5 {[%clk 0:01:32]}  Kf6 {[%clk 0:01:12]} 37. b6 {[%clk 0:01:31]}  Rb2 {[%clk 0:01:11]} 38. Rb8 {[%clk 0:01:30]}  Rb4 {[%clk 0:01:11]} 39. b7 {[%clk 0:01:30]}  Kg7 {[%clk 0:01:09]} 40. h4 {[%clk 0:01:27]}  Rb2 {[%clk 0:01:03]} 41. Kf1 {[%clk 0:01:25]}  Rb4 {[%clk 0:00:53]} 42. Ke2 {[%clk 0:01:24]}  Re4+ {[%clk 0:00:52]} 43. Kd3 {[%clk 0:01:23]}  Rb4 {[%clk 0:00:53]} 44. Kc3 {[%clk 0:01:23]}  Rb6 {[%clk 0:00:52]} 45. Kc4 {[%clk 0:01:18]}  Kh7 {[%clk 0:00:50]} 46. Rf8 {[%clk 0:01:15]}  Rxb7 {[%clk 0:00:49]} 47. Rxf7+ {[%clk 0:01:15]}  Kg6 {[%clk 0:00:48]} 48. Rf8 {[%clk 0:01:15]}  Ra7 {[%clk 0:00:46]} 49. h5+ {[%clk 0:01:15]}  Kxh5 {[%clk 0:00:42]} 50. Rxf5+ {[%clk 0:01:15]}  Kg4 {[%clk 0:00:42]} 51. Rf7 {[%clk 0:01:13]}  Ra4+ {[%clk 0:00:28]} 52. Kb5 {[%clk 0:01:12]}  Re4 {[%clk 0:00:23]} 53. Kc6 {[%clk 0:01:10]}  Kf3 {[%clk 0:00:19]} 54. Kd7 {[%clk 0:01:07]}  Rd4 {[%clk 0:00:18]} 55. Kc6 {[%clk 0:01:01]}  Re4 {[%clk 0:00:17]} 56. Kd7 {[%clk 0:01:01]}  Rd4 {[%clk 0:00:10]} 57. Kc6 {[%clk 0:00:57]}  Re4 {[%clk 0:00:09]} 1/2-1/2


[Site "https://www.chess.com"]

[Event "Titled Tuesday Blitz January 03 Late 2023"]
[White "Aguilar, Juan"]
[Black "Nissinen, Niilo Man"]
[WhiteFideId "3800091"]
[BlackFideId "30950767"]
[WhiteElo "2254"]
[BlackElo "1958"]
[Result "1-0"]
[Round "03"]
[TimeControl "180+2"]
[Date "2023.01.03"]
[WhiteClock "0:00:12"]
[BlackClock "0:00:04"]

1. g3 {[%clk 0:03:00]}  g6 {[%clk 0:02:57]} 2. Bg2 {[%clk 0:03:00]}  Bg7 {[%clk 0:02:58]} 3. d3 {[%clk 0:03:00]}  d5 {[%clk 0:02:57]} 4. Nf3 {[%clk 0:03:00]}  c6 {[%clk 0:02:57]} 5. O-O {[%clk 0:03:00]}  Nf6 {[%clk 0:02:57]} 6. c3 {[%clk 0:03:01]}  O-O {[%clk 0:02:57]} 7. Qa4 {[%clk 0:03:01]}  a5 {[%clk 0:02:56]} 8. Qh4 {[%clk 0:03:01]}  Nbd7 {[%clk 0:02:47]} 9. Bh6 {[%clk 0:03:02]}  Re8 {[%clk 0:02:45]} 10. Nbd2 {[%clk 0:02:59]}  Nf8 {[%clk 0:02:45]} 11. e4 {[%clk 0:02:51]}  e5 {[%clk 0:02:38]} 12. Rfe1 {[%clk 0:02:42]}  d4 {[%clk 0:02:07]} 13. cxd4 {[%clk 0:02:36]}  exd4 {[%clk 0:02:07]} 14. Bxg7 {[%clk 0:02:35]}  Kxg7 {[%clk 0:02:06]} 15. e5 {[%clk 0:02:32]}  Ng4 {[%clk 0:01:57]} 16. Qxd8 {[%clk 0:02:22]}  Rxd8 {[%clk 0:01:58]} 17. Nb3 {[%clk 0:01:57]}  Bf5 {[%clk 0:01:44]} 18. Rad1 {[%clk 0:01:51]}  Ne6 {[%clk 0:01:40]} 19. h3 {[%clk 0:01:29]}  Nh6 {[%clk 0:01:34]} 20. g4 {[%clk 0:01:23]}  Nxg4 {[%clk 0:01:33]} 21. hxg4 {[%clk 0:01:24]}  Bxg4 {[%clk 0:01:34]} 22. Rc1 {[%clk 0:01:19]}  Bf5 {[%clk 0:01:32]} 23. Nc5 {[%clk 0:01:06]}  Nf4 {[%clk 0:01:32]} 24. Bf1 {[%clk 0:00:55]}  b6 {[%clk 0:01:28]} 25. Nb7 {[%clk 0:00:52]}  Rd7 {[%clk 0:01:06]} 26. Nd6 {[%clk 0:00:52]}  Bxd3 {[%clk 0:00:58]} 27. Rxc6 {[%clk 0:00:49]}  b5 {[%clk 0:00:36]} 28. Nxd4 {[%clk 0:00:46]}  b4 {[%clk 0:00:24]} 29. Rd1 {[%clk 0:00:41]}  Bxf1 {[%clk 0:00:20]} 30. Kxf1 {[%clk 0:00:41]}  a4 {[%clk 0:00:14]} 31. N4f5+ {[%clk 0:00:33]}  Kf8 {[%clk 0:00:09]} 32. Nh6 {[%clk 0:00:31]}  Kg7 {[%clk 0:00:08]} 33. Nhxf7 {[%clk 0:00:29]}  Rxf7 {[%clk 0:00:08]} 34. Nxf7 {[%clk 0:00:30]}  Kxf7 {[%clk 0:00:08]} 35. Rd7+ {[%clk 0:00:29]}  Kg8 {[%clk 0:00:07]} 36. Rc4 {[%clk 0:00:20]}  b3 {[%clk 0:00:06]} 37. axb3 {[%clk 0:00:16]}  g5 {[%clk 0:00:06]} 38. bxa4 {[%clk 0:00:16]}  Rb8 {[%clk 0:00:05]} 39. b4 {[%clk 0:00:14]}  Re8 {[%clk 0:00:04]} 40. a5 {[%clk 0:00:13]}  Rxe5 {[%clk 0:00:04]} 41. Rc8+ {[%clk 0:00:12]} 1-0


[Site "https://www.chess.com"]

[Event "Titled Tuesday Blitz January 03 Late 2023"]
[White "Kosteniuk, Alexandra"]
[Black "Zilleruelo Irizarry, Diego"]
[WhiteFideId "4128125"]
[BlackFideId "3101460"]
[WhiteElo "2535"]
[BlackElo "2135"]
[Result "1-0"]
[Round "03"]
[TimeControl "180+2"]
[Date "2023.01.03"]
[WhiteClock "0:01:06"]
[BlackClock "0:00:15"]

1. Nf3 {[%clk 0:03:00]}  d5 {[%clk 0:02:58]} 2. g3 {[%clk 0:03:01]}  e6 {[%clk 0:02:59]} 3. Bg2 {[%clk 0:03:01]}  Nf6 {[%clk 0:02:59]} 4. d4 {[%clk 0:03:01]}  Be7 {[%clk 0:03:00]} 5. c4 {[%clk 0:03:01]}  O-O {[%clk 0:02:59]} 6. O-O {[%clk 0:03:00]}  c6 {[%clk 0:02:59]} 7. b3 {[%clk 0:02:57]}  Nbd7 {[%clk 0:02:58]} 8. Nc3 {[%clk 0:02:55]}  b6 {[%clk 0:02:58]} 9. Qc2 {[%clk 0:02:53]}  Bb7 {[%clk 0:02:57]} 10. Rd1 {[%clk 0:02:53]}  Rc8 {[%clk 0:02:56]} 11. Ne5 {[%clk 0:02:50]}  Qc7 {[%clk 0:02:51]} 12. Bf4 {[%clk 0:02:48]}  Nxe5 {[%clk 0:02:48]} 13. Bxe5 {[%clk 0:02:47]}  Bd6 {[%clk 0:02:47]} 14. Bxf6 {[%clk 0:02:47]}  gxf6 {[%clk 0:02:48]} 15. e4 {[%clk 0:02:48]}  Be7 {[%clk 0:02:36]} 16. Qe2 {[%clk 0:02:42]}  dxc4 {[%clk 0:02:30]} 17. bxc4 {[%clk 0:02:40]}  c5 {[%clk 0:02:28]} 18. d5 {[%clk 0:02:39]}  Qe5 {[%clk 0:02:28]} 19. Rac1 {[%clk 0:02:37]}  f5 {[%clk 0:02:20]} 20. f4 {[%clk 0:02:36]}  Qf6 {[%clk 0:02:20]} 21. e5 {[%clk 0:02:34]}  Qg6 {[%clk 0:02:18]} 22. d6 {[%clk 0:02:34]}  Bxg2 {[%clk 0:02:18]} 23. Qxg2 {[%clk 0:02:34]}  Bd8 {[%clk 0:02:15]} 24. Nb5 {[%clk 0:02:33]}  a6 {[%clk 0:02:08]} 25. Na7 {[%clk 0:02:30]}  Rb8 {[%clk 0:02:08]} 26. Nc6 {[%clk 0:02:30]}  Rc8 {[%clk 0:02:08]} 27. d7 {[%clk 0:02:25]}  Rc7 {[%clk 0:02:00]} 28. Rd6 {[%clk 0:02:23]}  h5 {[%clk 0:01:52]} 29. Rcd1 {[%clk 0:02:14]}  Kh7 {[%clk 0:01:50]} 30. R1d3 {[%clk 0:02:10]}  Rg8 {[%clk 0:01:49]} 31. Nxd8 {[%clk 0:01:52]}  Rxd8 {[%clk 0:01:48]} 32. a4 {[%clk 0:01:49]}  a5 {[%clk 0:01:34]} 33. Qd2 {[%clk 0:01:45]}  Qg4 {[%clk 0:01:31]} 34. Kg2 {[%clk 0:01:43]}  h4 {[%clk 0:01:28]} 35. h3 {[%clk 0:01:42]}  Qg7 {[%clk 0:01:19]} 36. Kh2 {[%clk 0:01:37]}  Rg8 {[%clk 0:01:10]} 37. Qf2 {[%clk 0:01:33]}  Rd8 {[%clk 0:01:00]} 38. gxh4 {[%clk 0:01:30]}  Qh6 {[%clk 0:01:01]} 39. Qg3 {[%clk 0:01:28]}  Qh5 {[%clk 0:00:44]} 40. Rd2 {[%clk 0:01:28]}  Rb7 {[%clk 0:00:32]} 41. R6d3 {[%clk 0:01:23]}  Rbb8 {[%clk 0:00:22]} 42. Qg5 {[%clk 0:01:20]}  Qxg5 {[%clk 0:00:19]} 43. hxg5 {[%clk 0:01:21]}  Kg6 {[%clk 0:00:19]} 44. Rd6 {[%clk 0:01:17]}  Kh5 {[%clk 0:00:19]} 45. Kg3 {[%clk 0:01:17]}  Kg6 {[%clk 0:00:16]} 46. Rb2 {[%clk 0:01:17]}  Kg7 {[%clk 0:00:16]} 47. h4 {[%clk 0:01:15]}  Kf8 {[%clk 0:00:16]} 48. h5 {[%clk 0:01:14]}  Ke7 {[%clk 0:00:16]} 49. Rbd2 {[%clk 0:01:11]}  Rb7 {[%clk 0:00:15]} 50. h6 {[%clk 0:01:10]}  Rbb8 {[%clk 0:00:14]} 51. Kh4 {[%clk 0:01:09]}  Kf8 {[%clk 0:00:14]} 52. Kh5 {[%clk 0:01:09]}  Kg8 {[%clk 0:00:14]} 53. g6 {[%clk 0:01:09]}  fxg6+ {[%clk 0:00:15]} 54. Kxg6 {[%clk 0:01:10]}  Kf8 {[%clk 0:00:15]} 55. Rxe6 {[%clk 0:01:08]}  Rb7 {[%clk 0:00:15]} 56. h7 {[%clk 0:01:06]} 1-0


[Site "https://www.chess.com"]

[Event "Titled Tuesday Blitz January 03 Late 2023"]
[White "Liu, Casper"]
[Black "Rostomyan, Mikayel"]
[WhiteFideId "1454153"]
[BlackFideId "13313754"]
[WhiteElo "2278"]
[BlackElo "2222"]
[Result "0-1"]
[Round "03"]
[TimeControl "180+2"]
[Date "2023.01.03"]
[WhiteClock "0:00:25"]
[BlackClock "0:01:22"]

1. e4 {[%clk 0:02:55]}  c5 {[%clk 0:02:59]} 2. Nc3 {[%clk 0:02:52]}  Nc6 {[%clk 0:02:55]} 3. g3 {[%clk 0:02:50]}  g6 {[%clk 0:02:43]} 4. Bg2 {[%clk 0:02:51]}  Bg7 {[%clk 0:02:44]} 5. Nge2 {[%clk 0:02:50]}  d6 {[%clk 0:02:44]} 6. O-O {[%clk 0:02:51]}  e5 {[%clk 0:02:44]} 7. d3 {[%clk 0:02:51]}  Nge7 {[%clk 0:02:44]} 8. f4 {[%clk 0:02:51]}  O-O {[%clk 0:02:45]} 9. Nd5 {[%clk 0:02:43]}  Nxd5 {[%clk 0:02:41]} 10. exd5 {[%clk 0:02:44]}  Ne7 {[%clk 0:02:42]} 11. fxe5 {[%clk 0:02:32]}  Bxe5 {[%clk 0:02:41]} 12. c3 {[%clk 0:02:25]}  Bg7 {[%clk 0:02:37]} 13. Bg5 {[%clk 0:02:21]}  Qc7 {[%clk 0:02:32]} 14. Qa4 {[%clk 0:02:19]}  a6 {[%clk 0:02:29]} 15. Rae1 {[%clk 0:02:18]}  b5 {[%clk 0:02:27]} 16. Qc2 {[%clk 0:01:52]}  h6 {[%clk 0:02:07]} 17. Bd2 {[%clk 0:01:36]}  c4 {[%clk 0:02:03]} 18. dxc4 {[%clk 0:01:33]}  bxc4 {[%clk 0:02:02]} 19. Nf4 {[%clk 0:01:17]}  Bf5 {[%clk 0:01:59]} 20. Be4 {[%clk 0:01:08]}  Rfe8 {[%clk 0:01:55]} 21. Bxf5 {[%clk 0:00:57]}  Nxf5 {[%clk 0:01:56]} 22. g4 {[%clk 0:00:57]}  Qc5+ {[%clk 0:01:51]} 23. Kh1 {[%clk 0:00:54]}  Ne3 {[%clk 0:01:44]} 24. Bxe3 {[%clk 0:00:49]}  Rxe3 {[%clk 0:01:45]} 25. Qf2 {[%clk 0:00:39]}  Rae8 {[%clk 0:01:29]} 26. Ne6 {[%clk 0:00:39]}  Qxd5+ {[%clk 0:01:26]} 27. Qg2 {[%clk 0:00:25]}  Qxg2+ {[%clk 0:01:21]} 28. Kxg2 {[%clk 0:00:25]}  R8xe6 {[%clk 0:01:22]} 0-1


[Site "https://www.chess.com"]

[Event "Titled Tuesday Blitz January 03 Late 2023"]
[White "Gatterer, Florian"]
[Black "Martinez, Marcel"]
[WhiteFideId "811688"]
[BlackFideId "2016249"]
[WhiteElo "2170"]
[BlackElo "2402"]
[Result "1/2-1/2"]
[Round "03"]
[TimeControl "180+2"]
[Date "2023.01.03"]
[WhiteClock "0:00:14"]
[BlackClock "0:00:36"]

1. Nf3 {[%clk 0:03:00]}  d5 {[%clk 0:02:58]} 2. d4 {[%clk 0:03:01]}  c6 {[%clk 0:02:57]} 3. Bf4 {[%clk 0:03:00]}  Qb6 {[%clk 0:02:57]} 4. Qc1 {[%clk 0:02:56]}  Bf5 {[%clk 0:02:55]} 5. e3 {[%clk 0:02:56]}  Nd7 {[%clk 0:02:55]} 6. Be2 {[%clk 0:02:54]}  h6 {[%clk 0:02:54]} 7. O-O {[%clk 0:02:52]}  Ngf6 {[%clk 0:02:54]} 8. c4 {[%clk 0:02:52]}  e6 {[%clk 0:02:54]} 9. c5 {[%clk 0:02:53]}  Qd8 {[%clk 0:02:53]} 10. h3 {[%clk 0:02:53]}  Be7 {[%clk 0:02:52]} 11. Nbd2 {[%clk 0:02:51]}  O-O {[%clk 0:02:51]} 12. b4 {[%clk 0:02:51]}  Qc8 {[%clk 0:02:48]} 13. Qc3 {[%clk 0:02:44]}  Bd8 {[%clk 0:02:45]} 14. Bd3 {[%clk 0:02:42]}  Bxd3 {[%clk 0:02:43]} 15. Qxd3 {[%clk 0:02:42]}  Bc7 {[%clk 0:02:44]} 16. Bxc7 {[%clk 0:02:26]}  Qxc7 {[%clk 0:02:45]} 17. e4 {[%clk 0:02:26]}  dxe4 {[%clk 0:02:44]} 18. Nxe4 {[%clk 0:02:26]}  Nxe4 {[%clk 0:02:43]} 19. Qxe4 {[%clk 0:02:26]}  a5 {[%clk 0:02:40]} 20. a3 {[%clk 0:02:25]}  Rfd8 {[%clk 0:02:39]} 21. Rab1 {[%clk 0:02:06]}  axb4 {[%clk 0:02:39]} 22. axb4 {[%clk 0:02:05]}  Ra4 {[%clk 0:02:39]} 23. Qc2 {[%clk 0:02:00]}  Rda8 {[%clk 0:02:36]} 24. b5 {[%clk 0:02:00]}  Ra2 {[%clk 0:02:28]} 25. Rb2 {[%clk 0:02:00]}  Rxb2 {[%clk 0:02:22]} 26. Qxb2 {[%clk 0:02:01]}  cxb5 {[%clk 0:02:16]} 27. Qxb5 {[%clk 0:01:56]}  Ra7 {[%clk 0:01:59]} 28. Rb1 {[%clk 0:01:54]}  g5 {[%clk 0:01:58]} 29. Kh1 {[%clk 0:01:46]}  Kg7 {[%clk 0:01:57]} 30. Kg1 {[%clk 0:01:46]}  Nf6 {[%clk 0:01:45]} 31. Qb6 {[%clk 0:01:40]}  Qxb6 {[%clk 0:01:42]} 32. Rxb6 {[%clk 0:01:38]}  Nd5 {[%clk 0:01:40]} 33. Rb2 {[%clk 0:01:32]}  f6 {[%clk 0:01:40]} 34. g3 {[%clk 0:01:27]}  Kg6 {[%clk 0:01:40]} 35. Kg2 {[%clk 0:01:27]}  h5 {[%clk 0:01:39]} 36. Re2 {[%clk 0:01:19]}  f5 {[%clk 0:01:37]} 37. Rb2 {[%clk 0:01:15]}  g4 {[%clk 0:01:32]} 38. Ne5+ {[%clk 0:01:10]}  Kf6 {[%clk 0:01:31]} 39. Nd7+ {[%clk 0:01:07]}  Ke7 {[%clk 0:01:30]} 40. Ne5 {[%clk 0:01:07]}  Nf6 {[%clk 0:01:23]} 41. c6 {[%clk 0:01:02]}  b5 {[%clk 0:01:01]} 42. Rxb5 {[%clk 0:00:58]}  Rc7 {[%clk 0:01:00]} 43. Rb7 {[%clk 0:00:51]}  Kd6 {[%clk 0:01:00]} 44. hxg4 {[%clk 0:00:42]}  hxg4 {[%clk 0:01:00]} 45. Rxc7 {[%clk 0:00:34]}  Kxc7 {[%clk 0:00:58]} 46. f3 {[%clk 0:00:34]}  gxf3+ {[%clk 0:00:47]} 47. Kxf3 {[%clk 0:00:33]}  Kd6 {[%clk 0:00:47]} 48. Kf4 {[%clk 0:00:33]}  Nh5+ {[%clk 0:00:45]} 49. Kf3 {[%clk 0:00:32]}  Nf6 {[%clk 0:00:46]} 50. Kg2 {[%clk 0:00:22]}  Nd5 {[%clk 0:00:44]} 51. Kf3 {[%clk 0:00:20]}  Nb4 {[%clk 0:00:43]} 52. g4 {[%clk 0:00:18]}  fxg4+ {[%clk 0:00:43]} 53. Kxg4 {[%clk 0:00:18]}  Nc2 {[%clk 0:00:41]} 54. Kg5 {[%clk 0:00:16]}  Nxd4 {[%clk 0:00:40]} 55. Kf6 {[%clk 0:00:16]}  Nb5 {[%clk 0:00:37]} 56. Nf7+ {[%clk 0:00:15]}  Kxc6 {[%clk 0:00:36]} 57. Kxe6 {[%clk 0:00:14]} 1/2-1/2


[Site "https://www.chess.com"]

[Event "Titled Tuesday Blitz January 03 Late 2023"]
[White "Balint, Vilmos"]
[Black "Senthil, Maran K"]
[WhiteFideId "718050"]
[BlackFideId "25035681"]
[WhiteElo "2169"]
[BlackElo "2209"]
[Result "0-1"]
[Round "03"]
[TimeControl "180+2"]
[Date "2023.01.03"]
[WhiteClock "0:01:38"]
[BlackClock "0:01:45"]

1. d4 {[%clk 0:02:57]}  Nf6 {[%clk 0:02:50]} 2. Nc3 {[%clk 0:02:51]}  d5 {[%clk 0:02:50]} 3. Bf4 {[%clk 0:02:50]}  c6 {[%clk 0:02:49]} 4. Qd2 {[%clk 0:02:47]}  Bf5 {[%clk 0:02:49]} 5. O-O-O {[%clk 0:02:47]}  e6 {[%clk 0:02:48]} 6. f3 {[%clk 0:02:47]}  Bd6 {[%clk 0:02:48]} 7. g4 {[%clk 0:02:46]}  Bxf4 {[%clk 0:02:47]} 8. Qxf4 {[%clk 0:02:47]}  Bg6 {[%clk 0:02:47]} 9. h4 {[%clk 0:02:46]}  h6 {[%clk 0:02:47]} 10. Rh3 {[%clk 0:02:43]}  Nbd7 {[%clk 0:02:43]} 11. g5 {[%clk 0:02:42]}  hxg5 {[%clk 0:02:42]} 12. hxg5 {[%clk 0:02:42]}  Rxh3 {[%clk 0:02:42]} 13. Bxh3 {[%clk 0:02:42]}  Ng8 {[%clk 0:02:38]} 14. e4 {[%clk 0:02:42]}  Qb8 {[%clk 0:02:37]} 15. Qh4 {[%clk 0:02:39]}  Qh2 {[%clk 0:02:32]} 16. Nge2 {[%clk 0:02:31]}  O-O-O {[%clk 0:02:30]} 17. Qg3 {[%clk 0:02:21]}  Qxg3 {[%clk 0:02:28]} 18. Nxg3 {[%clk 0:02:22]}  Ne7 {[%clk 0:02:28]} 19. Re1 {[%clk 0:02:20]}  Rh8 {[%clk 0:02:27]} 20. Bg4 {[%clk 0:02:20]}  Rh2 {[%clk 0:02:26]} 21. exd5 {[%clk 0:02:15]}  Rxc2+ {[%clk 0:02:23]} 22. Kd1 {[%clk 0:02:16]}  Nxd5 {[%clk 0:02:21]} 23. Nge4 {[%clk 0:02:15]}  Rxb2 {[%clk 0:02:20]} 24. Rh1 {[%clk 0:02:12]}  Nxc3+ {[%clk 0:02:07]} 25. Nxc3 {[%clk 0:02:12]}  b5 {[%clk 0:02:00]} 26. Rh8+ {[%clk 0:02:11]}  Kc7 {[%clk 0:02:00]} 27. f4 {[%clk 0:01:51]}  b4 {[%clk 0:01:56]} 28. Ne2 {[%clk 0:01:50]}  Rxa2 {[%clk 0:01:55]} 29. Rg8 {[%clk 0:01:46]}  b3 {[%clk 0:01:53]} 30. Nc3 {[%clk 0:01:40]}  Rc2 {[%clk 0:01:50]} 31. Na4 {[%clk 0:01:38]}  Nb6 {[%clk 0:01:45]} 0-1


[Site "https://www.chess.com"]

[Event "Titled Tuesday Blitz January 03 Late 2023"]
[White "Karas, Marek"]
[Black "Pino Perez, Lazaro"]
[WhiteFideId "14928558"]
[BlackFideId "3517055"]
[WhiteElo "2227"]
[BlackElo "2142"]
[Result "0-1"]
[Round "03"]
[TimeControl "180+2"]
[Date "2023.01.03"]
[WhiteClock "0:00:35"]
[BlackClock "0:00:41"]

1. e4 {[%clk 0:03:00]}  c5 {[%clk 0:02:59]} 2. Nc3 {[%clk 0:02:59]}  g6 {[%clk 0:02:59]} 3. f4 {[%clk 0:02:59]}  Bg7 {[%clk 0:02:58]} 4. Nf3 {[%clk 0:02:59]}  Nc6 {[%clk 0:02:55]} 5. Bc4 {[%clk 0:02:59]}  e6 {[%clk 0:02:39]} 6. O-O {[%clk 0:02:59]}  Nge7 {[%clk 0:02:35]} 7. Qe1 {[%clk 0:02:59]}  O-O {[%clk 0:02:29]} 8. e5 {[%clk 0:02:55]}  Nf5 {[%clk 0:02:20]} 9. Ne4 {[%clk 0:02:48]}  d5 {[%clk 0:02:06]} 10. exd6 {[%clk 0:02:47]}  Ncd4 {[%clk 0:02:06]} 11. Nxd4 {[%clk 0:02:44]}  Nxd4 {[%clk 0:02:07]} 12. Qd1 {[%clk 0:02:37]}  b5 {[%clk 0:02:06]} 13. Be2 {[%clk 0:02:31]}  Bb7 {[%clk 0:02:03]} 14. Nxc5 {[%clk 0:02:25]}  Qb6 {[%clk 0:01:48]} 15. Nxb7 {[%clk 0:02:09]}  Nxe2+ {[%clk 0:01:44]} 16. Kh1 {[%clk 0:02:09]}  Nxc1 {[%clk 0:01:44]} 17. Qxc1 {[%clk 0:01:55]}  Qxb7 {[%clk 0:01:44]} 18. c3 {[%clk 0:01:54]}  Rfd8 {[%clk 0:01:38]} 19. d4 {[%clk 0:01:53]}  Rxd6 {[%clk 0:01:37]} 20. a3 {[%clk 0:01:52]}  a5 {[%clk 0:01:36]} 21. Qe3 {[%clk 0:01:51]}  Rad8 {[%clk 0:01:30]} 22. h3 {[%clk 0:01:43]}  b4 {[%clk 0:01:26]} 23. axb4 {[%clk 0:01:39]}  axb4 {[%clk 0:01:26]} 24. Kh2 {[%clk 0:01:33]}  Rc8 {[%clk 0:01:22]} 25. Rac1 {[%clk 0:01:32]}  Rdc6 {[%clk 0:01:20]} 26. Rc2 {[%clk 0:01:28]}  Bh6 {[%clk 0:01:17]} 27. Rfc1 {[%clk 0:01:24]}  bxc3 {[%clk 0:01:15]} 28. bxc3 {[%clk 0:01:25]}  Qc7 {[%clk 0:01:14]} 29. g3 {[%clk 0:01:24]}  Rc4 {[%clk 0:01:14]} 30. Qd3 {[%clk 0:01:19]}  Qc6 {[%clk 0:01:07]} 31. h4 {[%clk 0:01:00]}  Bg7 {[%clk 0:01:07]} 32. Rd1 {[%clk 0:00:52]}  Rxc3 {[%clk 0:01:03]} 33. Rxc3 {[%clk 0:00:49]}  Qxc3 {[%clk 0:01:04]} 34. Qxc3 {[%clk 0:00:50]}  Rxc3 {[%clk 0:01:05]} 35. d5 {[%clk 0:00:50]}  exd5 {[%clk 0:01:04]} 36. Rxd5 {[%clk 0:00:50]}  h5 {[%clk 0:01:03]} 37. f5 {[%clk 0:00:49]}  Re3 {[%clk 0:00:57]} 38. fxg6 {[%clk 0:00:49]}  fxg6 {[%clk 0:00:58]} 39. Rd2 {[%clk 0:00:42]}  Be5 {[%clk 0:00:58]} 40. Rg2 {[%clk 0:00:39]}  Kg7 {[%clk 0:00:57]} 41. Kh3 {[%clk 0:00:38]}  Kf6 {[%clk 0:00:56]} 42. Rf2+ {[%clk 0:00:37]}  Ke6 {[%clk 0:00:56]} 43. Rg2 {[%clk 0:00:37]}  Kf5 {[%clk 0:00:53]} 44. Rg1 {[%clk 0:00:37]}  Rxg3+ {[%clk 0:00:41]} 45. Rxg3 {[%clk 0:00:35]}  Bxg3 {[%clk 0:00:41]} 46. Kxg3 {[%clk 0:00:36]}  Ke4 {[%clk 0:00:42]} 47. Kg2 {[%clk 0:00:35]}  Kf4 {[%clk 0:00:41]} 48. Kh3 {[%clk 0:00:35]}  Kf3 {[%clk 0:00:41]} 0-1


[Site "https://www.chess.com"]

[Event "Titled Tuesday Blitz January 03 Late 2023"]
[White "Lacasa Diaz, Jose Antonio"]
[Black "Mesic, Ismet"]
[WhiteFideId "2203375"]
[BlackFideId "14411105"]
[WhiteElo "2359"]
[BlackElo "2190"]
[Result "1-0"]
[Round "03"]
[TimeControl "180+2"]
[Date "2023.01.03"]
[WhiteClock "0:01:36"]
[BlackClock "0:01:24"]

1. e4 {[%clk 0:03:00]}  e6 {[%clk 0:02:59]} 2. d4 {[%clk 0:03:00]}  d5 {[%clk 0:02:58]} 3. e5 {[%clk 0:03:00]}  c5 {[%clk 0:02:55]} 4. c3 {[%clk 0:03:01]}  Nc6 {[%clk 0:02:54]} 5. Nf3 {[%clk 0:03:02]}  Qb6 {[%clk 0:02:47]} 6. a3 {[%clk 0:03:01]}  a5 {[%clk 0:02:46]} 7. Bd3 {[%clk 0:02:59]}  a4 {[%clk 0:02:43]} 8. O-O {[%clk 0:02:58]}  g6 {[%clk 0:02:35]} 9. Nbd2 {[%clk 0:02:39]}  c4 {[%clk 0:02:30]} 10. Bc2 {[%clk 0:02:38]}  Na5 {[%clk 0:02:30]} 11. Bxa4+ {[%clk 0:02:36]}  Nc6 {[%clk 0:02:25]} 12. Bc2 {[%clk 0:02:35]}  Bg7 {[%clk 0:02:24]} 13. Re1 {[%clk 0:02:35]}  Nge7 {[%clk 0:02:24]} 14. Nf1 {[%clk 0:02:32]}  O-O {[%clk 0:02:23]} 15. h4 {[%clk 0:02:31]}  h5 {[%clk 0:02:17]} 16. Ne3 {[%clk 0:02:26]}  Bd7 {[%clk 0:02:12]} 17. Ng5 {[%clk 0:02:17]}  Na5 {[%clk 0:02:09]} 18. g4 {[%clk 0:02:13]}  Nb3 {[%clk 0:02:05]} 19. Rb1 {[%clk 0:02:07]}  Nxc1 {[%clk 0:02:04]} 20. Qxc1 {[%clk 0:02:02]}  Bh6 {[%clk 0:02:01]} 21. gxh5 {[%clk 0:01:59]}  Kh8 {[%clk 0:01:57]} 22. f4 {[%clk 0:01:53]}  gxh5 {[%clk 0:01:56]} 23. Qd1 {[%clk 0:01:53]}  Nf5 {[%clk 0:01:48]} 24. Qxh5 {[%clk 0:01:48]}  Kg7 {[%clk 0:01:43]} 25. Kf2 {[%clk 0:01:43]}  Nxe3 {[%clk 0:01:38]} 26. Rxe3 {[%clk 0:01:39]}  f5 {[%clk 0:01:38]} 27. Rg3 {[%clk 0:01:37]}  Bxg5 {[%clk 0:01:24]} 28. Rxg5# {[%clk 0:01:36]} 1-0


[Site "https://www.chess.com"]